bitfinex-derivatives/quotes_SOLF0:USTF0_20260302
["timestamp","ask_amount","ask_price","bid_price","bid_amount"]
[1772487273664,3.33782444,87.62,87.589,10.273]
[1772487275462,3.33782444,87.6,87.541,3.85324032]
[1772487275668,3.33782444,87.59,87.541,3.85324032]
[1772487277373,3.33782444,87.58,87.558,10.277]
[1772487278673,3.33782444,87.59,87.558,10.277]
[1772487279369,3.33782444,87.58,87.541,3.85324032]
[1772487280673,9.19475048,87.619,87.49,159.997]
[1772487280674,3.33782444,87.6,87.57,10.276]
[1772487280874,3.33782444,87.59,87.56,3.85324032]
[1772487282272,3.33782444,87.59,87.563,10.276]
[1772487283177,3.33782444,87.6,87.563,10.276]
[1772487285679,3.33782444,87.59,87.563,10.276]
[1772487286882,3.33782444,87.59,87.571,10.276]
[1772487287083,3.33782444,87.6,87.571,10.276]
[1772487287575,3.33782444,87.6,87.56,3.85324032]
[1772487287777,3.33782444,87.6,87.578,10.275]
[1772487288480,3.33782444,87.61,87.578,10.275]
[1772487289983,3.33782444,87.61,87.584,10.274]
[1772487290385,3.33782444,87.59,87.558,3.73839599]
[1772487290586,3.33782444,87.58,87.534,3.73839599]
[1772487290782,0.00082444,87.58,87.534,3.73839599]
[1772487292181,0.00082444,87.58,87.56,10.277]
[1772487292686,0.00082444,87.58,87.547,3.73839599]
[1772487292885,3.33782444,87.59,87.565,10.276]
[1772487294487,3.33824992,87.59,87.565,10.276]
[1772487300499,3.33824992,87.59,87.547,3.73839599]
[1772487300500,3.33824992,87.59,87.557,10.277]
[1772487300996,3.33824992,87.57,87.533,3.73839599]
[1772487301196,3.33824992,87.56,87.539,10.279]
[1772487301500,3.33824992,87.57,87.539,10.279]
[1772487301800,3.73668245,87.573,87.517,3.73839599]
[1772487301801,3.33824992,87.56,87.517,3.73839599]
[1772487301997,3.33824992,87.55,87.517,3.73839599]
[1772487302300,3.33824992,87.55,87.485,3.73839599]
[1772487303001,3.73668245,87.574,87.518,3.73839599]
[1772487303301,3.33824992,87.56,87.518,3.73839599]
[1772487304199,3.33824992,87.56,87.53,10.28]
[1772487305196,3.33824992,87.57,87.536,10.28]
[1772487306603,3.73668245,87.569,87.529,10.28]
[1772487306806,3.33824992,87.55,87.514,3.73839599]
[1772487307510,3.73668245,87.559,87.514,3.73839599]
[1772487308202,3.73668245,87.559,87.528,10.281]
[1772487309507,3.73668245,87.559,87.521,10.281]
[1772487309706,3.73668245,87.549,87.501,3.73839599]
[1772487309911,3.33824992,87.55,87.518,3.73839599]
[1772487311603,3.33824992,87.56,87.518,3.73839599]
[1772487312413,3.33824992,87.56,87.53,10.28]
[1772487314711,3.33824992,87.54,87.492,3.73839599]
[1772487315318,3.33824992,87.52,87.485,3.73839599]
[1772487316507,3.33824992,87.53,87.485,3.73839599]
[1772487316707,1.38310448,87.545,87.485,3.73839599]
[1772487316912,3.33824992,87.54,87.485,3.73839599]
[1772487317810,1.38373982,87.559,87.508,3.93662999]
[1772487319216,1.38373982,87.559,87.522,10.281]
[1772487323118,3.33824992,87.56,87.53,10.28]
[1772487324913,3.33824992,87.56,87.537,10.28]
[1772487325119,3.33824992,87.57,87.537,10.28]
[1772487326714,3.33824992,87.57,87.539,10.279]
[1772487327418,1.56890523,87.569,87.538,3.93662999]
[1772487327621,3.33824992,87.56,87.538,3.93662999]
[1772487328417,3.33824992,87.56,87.531,10.28]
[1772487328617,8.38604045,87.591,87.551,3.93662999]
[1772487328822,8.38604045,87.593,87.551,3.93662999]
[1772487329124,3.33824992,87.6,87.551,3.93662999]
[1772487330215,3.33824992,87.6,87.556,10.277]
[1772487330416,10.272,87.605,87.556,10.277]
[1772487330417,3.33824992,87.59,87.556,10.277]
[1772487331619,3.33824992,87.6,87.562,3.93662999]
[1772487333321,3.33824992,87.6,87.567,10.276]
[1772487333916,3.33824992,87.61,87.575,10.275]
[1772487334224,3.33824992,87.6,87.562,3.93662999]
[1772487335221,3.33824992,87.6,87.567,10.276]
[1772487335923,3.33824992,87.6,87.574,10.275]
[1772487336118,3.33824992,87.61,87.574,10.275]
[1772487338626,3.33824992,87.6,87.562,3.93662999]
[1772487339123,3.33824992,87.6,87.54,3.33824992]
[1772487339124,3.33824992,87.59,87.557,10.277]
[1772487340524,3.33824992,87.59,87.563,10.276]
[1772487341127,3.33824992,87.59,87.558,3.93662999]
[1772487342027,3.77195971,87.599,87.566,10.276]
[1772487342422,3.77195971,87.589,87.542,3.93662999]
[1772487342924,3.77195971,87.589,87.545,10.279]
[1772487345128,10.274,87.588,87.545,10.279]
[1772487345329,3.33824992,87.58,87.545,10.279]
[1772487348031,10.275,87.579,87.542,3.93662999]
[1772487348229,3.33824992,87.58,87.542,3.93662999]
[1772487348628,8.66e-06,87.649,87.549,159.888]
[1772487348825,8.92741523,87.692,87.64,3.33824992]
[1772487349026,8.92741523,87.649,87.59,3.33824992]
[1772487349228,8.92741523,87.639,87.57,3.33824992]
[1772487349627,8.92741523,87.639,87.6,3.33824992]
[1772487349925,8.92741523,87.639,87.59,3.33824992]
[1772487350326,8.92741523,87.639,87.584,10.274]
[1772487354430,8.92601825,87.637,87.584,10.274]
[1772487354632,8.92601825,87.637,87.575,10.275]
[1772487355026,8.92601825,87.635,87.584,10.274]
[1772487355533,8.92601825,87.635,87.541,20.558]
[1772487355831,8.92601825,87.633,87.584,10.274]
[1772487362230,8.92601825,87.633,87.575,10.275]
[1772487362832,8.93068902,87.621,87.531,14.1579508]
[1772487363027,8.93068902,87.619,87.52,8.93289806]
[1772487363426,8.93068902,87.615,87.56,10.277]
[1772487364235,8.9727228,87.611,87.56,10.277]
[1772487365334,8.9727228,87.611,87.52,8.93289806]
[1772487365335,8.9727228,87.611,87.54,8.93289806]
[1772487365633,8.9727228,87.639,87.56,8.93289806]
[1772487365838,8.9727228,87.639,87.604,10.272]
[1772487366032,9.02066873,87.653,87.58,8.93289806]
[1772487366337,9.02066873,87.653,87.581,20.549]
[1772487368333,9.02066873,87.653,87.609,10.271]
[1772487369539,9.02066873,87.653,87.618,10.27]
[1772487370532,10.91937517,87.69,87.58,8.93289806]
[1772487370533,9.0352223,87.65,87.58,8.93289806]
[1772487370929,9.0352223,87.65,87.559,20.554]
[1772487370930,9.0352223,87.65,87.56,8.93289806]
[1772487372237,9.02029406,87.64,87.586,10.274]
[1772487372934,9.02029406,87.623,87.577,10.275]
[1772487373135,9.02029406,87.623,87.54,8.93289806]
[1772487374239,8.9847106,87.61,87.52,8.93289806]
[1772487374441,8.9847106,87.609,87.52,8.93289806]
[1772487374641,8.9847106,87.603,87.52,8.93289806]
[1772487375343,8.9847106,87.593,87.551,10.278]
[1772487376738,8.9847106,87.593,87.542,10.279]
[1772487377043,8.86640122,87.591,87.542,10.279]
[1772487377939,8.83438117,87.587,87.523,10.281]
[1772487378245,8.83438117,87.587,87.5,8.93289806]
[1772487378443,8.83438117,87.586,87.5,8.93289806]
[1772487379045,8.83438117,87.586,87.52,8.93289806]
[1772487380147,8.83988793,87.621,87.572,10.275]
[1772487380349,8.83988793,87.621,87.54,8.93289806]
[1772487380848,8.83988793,87.619,87.572,10.275]
[1772487381643,8.83988793,87.617,87.564,10.276]
[1772487382943,8.84871649,87.613,87.571,10.275]
[1772487383147,8.84871649,87.613,87.54,8.93289806]
[1772487383547,8.84871649,87.613,87.579,10.275]
[1772487383849,8.84871649,87.613,87.542,20.558]
[1772487384050,8.84871649,87.629,87.542,20.558]
[1772487385352,8.85079761,87.626,87.578,10.275]
[1772487387347,8.88492052,87.622,87.578,10.275]
[1772487389657,8.88492052,87.622,87.585,10.274]
[1772487391256,8.88492052,87.622,87.545,20.558]
[1772487392260,19.15544144,87.62,87.575,10.275]
[1772487392460,8.88544144,87.619,87.575,10.275]
[1772487392657,8.88544144,87.619,87.57,3.33593626]
[1772487394359,8.88544144,87.619,87.581,10.274]
[1772487396467,329.45094946,87.633,87.567,20.552]
[1772487396661,8.88284568,87.632,87.567,20.552]
[1772487397370,8.88284568,87.632,87.56,8.93506996]
[1772487398365,8.8553231,87.63,87.587,10.274]
[1772487399074,8.8553231,87.63,87.595,10.273]
[1772487399273,329.45094946,87.633,87.56,8.93506996]
[1772487399470,8.8553231,87.645,87.56,8.93506996]
[1772487400269,8.8553231,87.645,87.602,10.272]
[1772487404277,8.8553231,87.645,87.56,8.93506996]
[1772487404582,8.93506996,87.67,87.617,10.27]
[1772487404583,8.87299639,87.666,87.617,10.27]
[1772487405078,8.87299639,87.666,87.55,159.886]
[1772487405079,8.87299639,87.689,87.62,8.93506996]
[1772487405378,8.87299639,87.703,87.62,502.27569453]
[1772487405681,8.87299639,87.689,87.62,493.34062457]
[1772487406181,8.86741486,87.675,87.62,493.34062457]
[1772487407283,8.86741486,87.675,87.631,10.268]
[1772487409382,8.86741486,87.675,87.621,10.27]
[1772487410483,19.12534487,87.673,87.621,10.27]
[1772487410682,8.86134487,87.673,87.62,493.34062457]
[1772487410975,8.86134487,87.67,87.62,493.34062457]
[1772487411778,8.86134487,87.654,87.62,493.34062457]
[1772487411984,8.86134487,87.654,87.601,10.272]
[1772487414178,10.266,87.653,87.601,10.272]
[1772487414380,19.15351109,87.653,87.601,10.272]
[1772487414587,3.3336819,87.65,87.601,10.272]
[1772487414780,10.267,87.648,87.601,10.272]
[1772487414986,3.3336819,87.64,87.592,10.273]
[1772487416384,10.268,87.638,87.592,10.273]
[1772487418785,3.33427789,87.64,87.592,10.273]
[1772487419790,10.268,87.639,87.592,10.273]
[1772487420987,3.33427789,87.63,87.545,14.15780713]
[1772487421284,10.54852188,87.659,87.534,159.917]
[1772487421484,21.14406777,87.681,87.498,479.946]
[1772487421485,8.8940165,87.664,87.62,3.33427789]
[1772487421789,8.8940165,87.664,87.61,3.33427789]
[1772487422183,8.8940165,87.664,87.618,10.27]
[1772487423091,8.8940165,87.664,87.61,3.33427789]
[1772487423092,8.89566605,87.659,87.567,14.15780713]
[1772487423288,3.33427789,87.65,87.6,3.33427789]
[1772487424393,3.33427789,87.65,87.602,10.272]
[1772487425884,8.84086088,87.647,87.59,3.33427789]
[1772487426088,8.84086088,87.647,87.507,159.965]
[1772487426089,3.33427789,87.64,87.593,10.273]
[1772487426493,8.84364217,87.639,87.58,3.33427789]
[1772487427294,3.33427789,87.66,87.6,3.33427789]
[1772487427494,8.84364217,87.659,87.6,3.33427789]
[1772487428088,8.84247424,87.649,87.6,3.33427789]
[1772487428392,8.84247424,87.649,87.601,10.272]
[1772487430199,10.267,87.648,87.601,10.272]
[1772487430394,19.10466652,87.648,87.601,10.272]
[1772487430897,12.17194441,87.66,87.61,3.33427789]
[1772487431098,8.83766652,87.659,87.61,3.33427789]
[1772487431295,8.83766652,87.649,87.59,3.33427789]
[1772487431494,8.83766652,87.639,87.58,3.33427789]
[1772487431996,3.33427789,87.66,87.6,3.33427789]
[1772487432997,10.265,87.657,87.609,10.271]
[1772487435999,10.265,87.657,87.616,10.27]
[1772487436603,19.11146555,87.657,87.616,10.27]
[1772487437099,8.84630781,87.654,87.6,3.33427789]
[1772487437294,8.84630781,87.649,87.59,3.33427789]
[1772487437496,8.84630781,87.649,87.533,159.918]
[1772487437497,8.84630781,87.619,87.56,3.33427789]
[1772487438300,3.33427789,87.6,87.542,14.15780713]
[1772487438500,12.1793069,87.58,87.524,14.15780713]
[1772487438704,8.84502901,87.579,87.52,3.33427789]
[1772487439102,3.33427789,87.57,87.52,3.33427789]
[1772487439303,3.33427789,87.57,87.51,3.33427789]
[1772487440200,8.84795721,87.559,87.5,3.33427789]
[1772487440597,8.84795721,87.559,87.498,493.63435571]
[1772487441208,8.84795721,87.559,87.517,10.282]
[1772487445310,8.84795721,87.559,87.525,10.281]
[1772487445708,8.84795721,87.559,87.498,493.63435571]
[1772487445907,8.84795721,87.559,87.516,10.282]
[1772487447812,8.84795721,87.559,87.498,493.63435571]
[1772487449214,8.85304035,87.554,87.507,10.283]
[1772487450413,8.8739632,87.569,87.498,493.63435571]
[1772487451810,8.8739632,87.583,87.5,8.94804384]
[1772487452304,8.85780325,87.579,87.524,10.281]
[1772487453003,8.85780325,87.576,87.531,10.28]
[1772487454707,10.275,87.575,87.523,10.281]
[1772487454911,8.8592184,87.574,87.523,10.281]
[1772487455716,8.8592184,87.574,87.5,8.94804384]
[1772487456017,8.8592184,87.574,87.536,10.28]
[1772487461319,19.13314488,87.588,87.542,10.279]
[1772487461818,8.85914488,87.587,87.542,10.279]
[1772487463022,10.274,87.586,87.542,10.279]
[1772487463423,8.85914488,87.587,87.55,10.278]
[1772487463924,8.85914488,87.587,87.54,3.33895942]
[1772487465215,8.85914488,87.587,87.543,10.279]
[1772487465616,8.85914488,87.587,87.54,3.33895942]
[1772487465825,8.85914488,87.587,87.511,20.566]
[1772487465826,8.85914488,87.587,87.55,3.33895942]
[1772487466224,8.85914488,87.587,87.53,3.33895942]
[1772487466426,9.35943027,87.579,87.52,3.33895942]
[1772487468223,9.359252,87.577,87.538,10.279]
[1772487470525,328.95653349,87.622,87.545,10.279]
[1772487470526,9.36690172,87.584,87.545,10.279]
[1772487475432,9.36690172,87.584,87.55,10.278]
[1772487482538,3.33853074,87.58,87.55,10.278]
[1772487482732,9.36690172,87.584,87.55,10.278]
[1772487483739,9.35707167,87.582,87.544,10.279]
[1772487484646,13.93148548,87.611,87.53,3.33853074]
[1772487484647,9.35693328,87.599,87.566,10.276]
[1772487484939,13.88586698,87.61,87.566,10.276]
[1772487484940,9.35693328,87.609,87.566,10.276]
[1772487485537,9.35693328,87.609,87.573,10.275]
[1772487485836,9.35693328,87.599,87.54,3.33853074]
[1772487486237,9.33753837,87.579,87.53,3.33853074]
[1772487486439,9.33753837,87.579,87.52,3.33853074]
[1772487487744,9.33753837,87.579,87.539,10.279]
[1772487489446,9.33753837,87.579,87.53,3.33853074]
[1772487489641,9.33753837,87.579,87.515,14.15780713]
[1772487489642,9.33753837,87.579,87.54,3.33853074]
[1772487490244,9.33753837,87.579,87.544,10.279]
[1772487494250,9.33753837,87.579,87.536,10.28]
[1772487494951,9.50515029,87.577,87.52,3.33853074]
[1772487496253,9.50515029,87.577,87.535,10.28]
[1772487500456,9.50515029,87.577,87.53,3.33853074]
[1772487501452,9.51305191,87.589,87.521,14.15780713]
[1772487501655,9.51305191,87.589,87.54,3.33853074]
[1772487502048,9.51305191,87.589,87.53,3.33853074]
[1772487502252,9.51719026,87.58,87.53,3.33853074]
[1772487503354,9.51719026,87.58,87.54,10.279]
[1772487504858,9.51719026,87.58,87.547,10.278]
[1772487505058,9.51719026,87.58,87.54,3.33853074]
[1772487506055,9.51719026,87.58,87.53,3.33853074]
[1772487507261,9.51719026,87.58,87.548,10.278]
[1772487513367,9.51719026,87.58,87.54,10.279]
[1772487513669,9.48253544,87.579,87.54,10.279]
[1772487514869,9.48253544,87.579,87.547,10.278]
[1772487515071,9.48253544,87.579,87.53,3.33853074]
[1772487516275,9.48253544,87.579,87.544,10.279]
[1772487518081,9.50341855,87.57,87.53,10.28]
[1772487518278,9.50341855,87.569,87.53,10.28]
[1772487518476,9.50341855,87.559,87.502,14.15780713]
[1772487518781,9.50341855,87.559,87.501,14.15780713]
[1772487518979,9.50341855,87.559,87.5,3.33853074]
[1772487520069,9.49849287,87.554,87.514,10.282]
[1772487522380,9.49265118,87.549,87.514,10.282]
[1772487529974,10.61169402,87.575,87.48,14.15780713]
[1772487529975,9.4924367,87.561,87.52,3.33853074]
[1772487530479,9.4924367,87.561,87.53,3.33853074]
[1772487531083,9.50225973,87.572,87.53,3.33853074]
[1772487531284,9.50225973,87.572,87.533,10.28]
[1772487532683,9.50225973,87.572,87.54,10.279]
[1772487538593,9.50225973,87.572,87.532,10.28]
[1772487539094,10.61169402,87.589,87.522,10.281]
[1772487539095,9.48154993,87.569,87.522,10.281]
[1772487539294,9.48154993,87.559,87.5,3.3391796]
[1772487539889,9.48154993,87.558,87.521,10.281]
[1772487540086,9.48154993,87.558,87.52,3.3391796]
[1772487540486,9.48211902,87.579,87.54,3.3391796]
[1772487540692,9.48211902,87.604,87.55,3.3391796]
[1772487540992,9.48211902,87.613,87.572,10.275]
[1772487541295,9.48211902,87.613,87.57,3.3391796]
[1772487541492,9.48211902,87.613,87.56,3.3391796]
[1772487541697,9.48211902,87.613,87.57,3.3391796]
[1772487542694,9.48211902,87.613,87.577,10.275]
[1772487542895,9.46689029,87.641,87.59,3.3391796]
[1772487543096,9.46689029,87.641,87.6,3.3391796]
[1772487546291,9.46689029,87.641,87.6,13.6111796]
[1772487546490,9.46689029,87.641,87.6,10.272]
[1772487547598,9.44963925,87.653,87.61,3.3391796]
[1772487547795,9.44963925,87.629,87.58,3.3391796]
[1772487548600,9.44960065,87.641,87.59,3.3391796]
[1772487548800,9.44960065,87.641,87.6,3.3391796]
[1772487549103,9.44960065,87.653,87.6,3.3391796]
[1772487549398,9.44960065,87.653,87.612,10.271]
[1772487551501,9.45116946,87.649,87.612,10.271]
[1772487558306,9.45116946,87.649,87.619,10.27]
[1772487563812,3.3391796,87.63,87.58,3.3391796]
[1772487564914,9.46391396,87.639,87.608,10.271]
[1772487565113,9.46391396,87.639,87.59,3.3391796]
[1772487566311,9.46391396,87.639,87.61,10.271]
[1772487569206,9.51717536,87.629,87.589,485.22000658]
[1772487569816,9.51717536,87.629,87.596,10.272]
[1772487570608,9.51717536,87.629,87.601,10.272]
[1772487570814,9.51687111,87.641,87.59,3.3391796]
[1772487571014,9.51687111,87.649,87.6,3.3391796]
[1772487571212,9.51687111,87.649,87.617,10.27]
[1772487572327,9.51687111,87.649,87.61,10.271]
[1772487574319,9.51687111,87.649,87.589,485.22000658]
[1772487574320,3.3391796,87.64,87.594,10.273]
[1772487574524,9.51562765,87.639,87.594,10.273]
[1772487574726,9.51562765,87.639,87.59,3.3391796]
[1772487575023,3.3391796,87.62,87.57,3.3391796]
[1772487576329,21.24188287,87.695,87.538,5.13579263]
[1772487576330,9.52564783,87.619,87.538,5.13579263]
[1772487576522,3.3391796,87.58,87.484,174.16480713]
[1772487576724,3.3391796,87.58,87.52,3.3391796]
[1772487577127,3.3391796,87.58,87.53,3.3391796]
[1772487577326,3.3391796,87.58,87.538,10.279]
[1772487577627,3.3391796,87.57,87.538,10.279]
[1772487577821,4.38864783,87.579,87.538,10.279]
[1772487578217,3.3391796,87.59,87.546,10.278]
[1772487579830,7.72735117,87.59,87.546,10.278]
[1772487580124,4.38817157,87.589,87.546,10.278]
[1772487582226,20.533,87.65,87.492,20.57]
[1772487582227,4.38728544,87.579,87.537,10.279]
[1772487583129,3.3391796,87.57,87.52,3.3391796]
[1772487584125,4.38728544,87.579,87.53,3.3391796]
[1772487585129,4.38728544,87.579,87.552,10.278]
[1772487585330,3.3391796,87.59,87.552,10.278]
[1772487585529,3.3391796,87.59,87.54,3.3391796]
[1772487585530,3.3391796,87.6,87.55,3.3391796]
[1772487585830,3.3391796,87.6,87.483,160.01]
[1772487585831,4.38954994,87.589,87.54,3.3391796]
[1772487586226,4.38954994,87.589,87.525,483.15678105]
[1772487586527,3.3391796,87.59,87.54,3.3391796]
[1772487586528,7.72177197,87.59,87.54,3.3391796]
[1772487586830,4.38259237,87.589,87.54,3.3391796]
[1772487588326,4.38259237,87.589,87.551,10.278]
[1772487589732,10.61169402,87.626,87.525,483.15678105]
[1772487589733,4.37146669,87.559,87.525,483.15678105]
[1772487590034,3.3391796,87.55,87.525,483.15678105]
[1772487590236,4.37146669,87.559,87.525,483.15678105]
[1772487590730,4.36492046,87.539,87.497,10.284]
[1772487591427,4.36492046,87.544,87.5,3.3391796]
[1772487592134,7.70944899,87.56,87.51,3.3391796]
[1772487592334,4.37026939,87.559,87.5,3.3391796]
[1772487592830,3.3391796,87.55,87.5,3.3391796]
[1772487593030,7.70944899,87.55,87.5,3.3391796]
[1772487593233,7.70944899,87.55,87.507,10.283]
[1772487593635,3.3391796,87.56,87.51,3.3391796]
[1772487594338,7.71093944,87.56,87.51,3.3391796]
[1772487594538,4.37175984,87.559,87.51,3.3391796]
[1772487594838,4.37175984,87.559,87.5,3.3391796]
[1772487595034,4.37175984,87.559,87.519,10.282]
[1772487596029,12.73474253,87.608,87.463,475.76581694]
[1772487596336,28.06062837,87.66,87.463,475.76581694]
[1772487596337,4.36952491,87.639,87.59,3.3391796]
[1772487596929,4.36952491,87.639,87.527,159.928]
[1772487596930,4.36952491,87.639,87.58,3.3391796]
[1772487597127,4.36952491,87.639,87.589,10.273]
[1772487597331,4.36952491,87.639,87.59,3.3391796]
[1772487597832,4.36952491,87.639,87.605,10.272]
[1772487600028,4.18510395,87.663,87.6,3.3391796]
[1772487600235,7.52428355,87.66,87.623,10.269]
[1772487600437,4.18510395,87.659,87.623,10.269]
[1772487600627,4.18510395,87.659,87.61,3.332879]
[1772487601038,4.18510395,87.659,87.613,10.271]
[1772487601227,4.18510395,87.649,87.59,3.332879]
[1772487602238,4.18510395,87.649,87.604,10.272]
[1772487603130,4.18510395,87.649,87.59,3.332879]
[1772487603433,4.10667925,87.629,87.594,10.273]
[1772487603633,4.10667925,87.629,87.57,3.332879]
[1772487604637,3.332879,87.62,87.57,3.332879]
[1772487604830,7.44506836,87.62,87.584,10.274]
[1772487605032,4.11218936,87.609,87.56,3.332879]
[1772487605238,4.11218936,87.609,87.57,3.332879]
[1772487606136,4.11218936,87.609,87.56,3.332879]
[1772487606338,4.11218936,87.609,87.571,10.275]
[1772487608438,4.11218936,87.609,87.559,10.277]
[1772487609040,4.11218936,87.609,87.567,10.276]
[1772487614842,4.11218936,87.609,87.574,10.275]
[1772487615037,4.11218936,87.609,87.531,20.561]
[1772487615241,4.13555832,87.579,87.52,3.332879]
[1772487616550,3.332879,87.57,87.52,3.332879]
[1772487616747,3.332879,87.57,87.487,20.571]
[1772487616748,3.332879,87.57,87.51,3.332879]
[1772487617045,4.13555832,87.579,87.544,10.279]
[1772487623648,3.332879,87.59,87.54,3.332879]
[1772487623849,7.49065058,87.59,87.54,3.332879]
[1772487624054,4.15777158,87.589,87.54,3.332879]
[1772487624350,4.15777158,87.589,87.53,3.332879]
[1772487625157,4.15777158,87.589,87.554,10.278]
[1772487625662,4.15777158,87.589,87.53,3.332879]
[1772487626359,4.15777158,87.589,87.553,10.278]
[1772487627463,4.15777158,87.589,87.559,10.277]
[1772487629457,4.15777158,87.589,87.552,10.278]
[1772487630163,4.15777158,87.589,87.558,10.277]
[1772487635766,4.15777158,87.589,87.551,10.278]
[1772487636865,4.15777158,87.589,87.557,10.277]
[1772487637065,3.332879,87.6,87.55,3.332879]
[1772487637267,4.15231224,87.604,87.55,3.332879]
[1772487637659,4.15231224,87.602,87.563,10.276]
[1772487637860,20.537,87.633,87.563,10.276]
[1772487637861,4.15231224,87.599,87.563,10.276]
[1772487638058,4.15231224,87.629,87.59,3.332879]
[1772487639264,4.15231224,87.629,87.595,10.273]
[1772487646866,3.332879,87.61,87.57,10.276]
[1772487647169,4.03175219,87.619,87.56,3.332879]
[1772487647565,4.03175219,87.619,87.57,3.332879]
[1772487649272,4.03175219,87.619,87.584,10.274]
[1772487653381,10.5416388,87.649,87.508,177.0]
[1772487653382,14.32658614,87.649,87.602,10.272]
[1772487654072,4.06058614,87.648,87.602,10.272]
[1772487655179,4.05638794,87.646,87.602,10.272]
[1772487656283,10.267,87.641,87.602,10.272]
[1772487656876,4.05638794,87.646,87.602,10.272]
[1772487657383,336.23333653,87.668,87.6,3.332879]
[1772487657384,10.266,87.656,87.6,3.332879]
[1772487657778,4.08120375,87.655,87.6,3.332879]
[1772487657978,3.332879,87.65,87.6,3.332879]
[1772487658179,4.08120375,87.649,87.59,3.332879]
[1772487659187,4.08219327,87.647,87.605,10.271]
[1772487659882,4.08219327,87.629,87.57,3.332879]
[1772487660288,4.08575341,87.619,87.56,3.332879]
[1772487660490,4.08575341,87.613,87.56,3.332879]
[1772487662284,4.08575341,87.613,87.577,10.275]
[1772487663686,4.11786414,87.626,87.58,3.33611586]
[1772487663894,4.11786414,87.638,87.58,3.33611586]
[1772487664583,4.10056225,87.629,87.58,3.33611586]
[1772487665590,4.10056225,87.629,87.587,10.274]
[1772487665789,4.10056225,87.629,87.58,3.33611586]
[1772487665990,4.10056225,87.629,87.57,3.33611586]
[1772487666185,4.10056225,87.629,87.594,10.273]
[1772487666786,4.10056225,87.629,87.6,10.272]
[1772487671895,4.10056225,87.629,87.593,10.273]
[1772487672994,3.33611586,87.65,87.59,3.33611586]
[1772487673298,4.07985175,87.659,87.6,3.33611586]
[1772487674295,10.266,87.657,87.613,10.271]
[1772487674500,4.07000132,87.656,87.613,10.271]
[1772487676190,10.266,87.653,87.613,10.271]
[1772487676396,4.07000132,87.656,87.6,3.33611586]
[1772487676696,4.07000132,87.656,87.61,3.33611586]
[1772487676892,3.33611586,87.66,87.609,10.271]
[1772487676893,4.05876755,87.655,87.609,10.271]
[1772487677494,3.33611586,87.65,87.609,10.271]
[1772487677700,14.32480087,87.649,87.609,10.271]
[1772487678498,4.04947764,87.648,87.609,10.271]
[1772487678694,4.04947764,87.646,87.602,10.272]
[1772487678901,4.04947764,87.646,87.59,3.33611586]
[1772487679100,3.33611586,87.65,87.6,3.33611586]
[1772487680302,3.33611586,87.67,87.61,3.33611586]
[1772487680498,4.07258931,87.669,87.61,3.33611586]
[1772487682204,10.265,87.665,87.623,10.269]
[1772487683901,4.07258931,87.669,87.63,10.269]
[1772487685202,4.0912658,87.659,87.623,10.269]
[1772487687007,4.0912658,87.659,87.629,10.269]
[1772487691007,4.0912658,87.659,87.6,3.33611586]
[1772487692211,4.08754763,87.655,87.618,10.27]
[1772487692409,4.08754763,87.655,87.6,3.33611586]
[1772487692608,4.08754763,87.639,87.58,3.33611586]
[1772487693107,4.08754763,87.639,87.601,10.272]
[1772487696415,3.33611586,87.65,87.59,3.33611586]
[1772487696618,4.07923051,87.652,87.61,3.33611586]
[1772487697818,3.33611586,87.65,87.59,3.33611586]
[1772487698014,4.07923051,87.649,87.59,3.33611586]
[1772487698517,4.07901001,87.647,87.612,10.271]
[1772487701424,4.08252931,87.639,87.58,3.33611586]
[1772487701720,4.08252931,87.639,87.59,3.33611586]
[1772487702525,4.08252931,87.639,87.603,10.272]
[1772487706732,10.268,87.637,87.596,10.273]
[1772487708626,4.13303762,87.632,87.58,13.61011586]
[1772487708825,4.13303762,87.632,87.58,3.33611586]
[1772487710333,4.12969844,87.627,87.586,10.274]
[1772487710529,4.12969844,87.627,87.58,3.33611586]
[1772487711235,4.12969844,87.627,87.592,10.273]
[1772487711635,10.269,87.626,87.592,10.273]
[1772487715035,4.12125849,87.625,87.592,10.273]
[1772487715233,4.12125849,87.623,87.585,10.274]
[1772487715627,10.27,87.62,87.585,10.274]
[1772487715832,4.12125849,87.619,87.585,10.274]